fUST/lending_fUST_20240216
["ID","MTS","AMOUNT","RATE_DAILY","PERIOD"]
[314170977,1708041041942,-500.0,0.00021917,2]
[314170978,1708041041950,-659.88,0.00021917,2]
[314170979,1708041041959,-558.62,0.00021917,2]
[314170980,1708041041968,-519.17079685,0.00021917,2]
[314170981,1708041041977,-500.0,0.00021917,2]
[314170982,1708041041986,-500.0,0.00021917,2]
[314170983,1708041041995,-500.0,0.00021917,2]
[314170984,1708041042004,-397.46061973,0.00021917,2]
[314170985,1708041042013,-535.87278273,0.00021917,2]
[314170986,1708041042022,-195.99445327,0.00021917,2]
[314170987,1708041042031,-500.0,0.00021917,2]
[314170988,1708041042041,-158.51638676,0.00021917,2]
[314170989,1708041042050,-502.92808677,0.00021917,2]
[314170990,1708041042118,-500.0,0.00021917,2]
[314170991,1708041042128,-1973.52,0.00021917,2]
[314170992,1708041042137,-500.0,0.00021917,2]
[314170993,1708041042149,-511.04327284,0.00021917,2]
[314170994,1708041042158,-500.0,0.00021917,2]
[314170995,1708041042167,-500.0,0.00021917,2]
[314170996,1708041042176,-501.56566972,0.00021917,2]
[314170997,1708041042185,-500.0,0.00021917,2]
[314170998,1708041042195,-500.0,0.00021917,2]
[314170999,1708041042204,-502.66022835,0.00021917,2]
[314171000,1708041042213,-503.69014299,0.00021917,2]
[314171001,1708041042222,-500.0,0.00021917,2]
[314171002,1708041042231,-500.0,0.00021917,2]
[314171003,1708041042240,-500.0,0.00021917,2]
[314171004,1708041042249,-500.0,0.00021917,2]
[314171005,1708041042259,-168.47470284,0.00021917,2]
[314171006,1708041042269,-604.93952717,0.00021917,2]
[314171007,1708041042278,-500.0,0.00021917,2]
[314171008,1708041042287,-500.0,0.00021917,2]
[314171009,1708041042296,-500.0,0.00021917,2]
[314171010,1708041042306,-208.6232261,0.00021917,2]
[314171011,1708041042314,-502.00753145,0.00021917,2]
[314171012,1708041042324,-404.84073199,0.00021917,2]
[314171013,1708041042332,-500.0,0.00021917,2]
[314171014,1708041042341,-941.0,0.00021917,2]
[314171015,1708041042350,-500.0,0.00021917,2]
[314171016,1708041042359,-500.0,0.00021917,2]
[314171017,1708041042367,-516.94149683,0.00021917,2]
[314171018,1708041042376,-520.94030356,0.00021917,2]
[314171019,1708041042385,-1000.0,0.00021917,5]
[314171020,1708041042394,-500.0,0.00021917,2]
[314171021,1708041042403,-500.0,0.00021917,2]
[314171022,1708041042412,-500.0,0.00021917,2]
[314171023,1708041042420,-500.0,0.00021917,2]
[314171024,1708041042429,-500.0,0.00021917,2]
[314171025,1708041042438,-1273.42,0.00021917,2]
[314171026,1708041042447,-500.0,0.00021917,2]
[314171027,1708041042457,-1866.65,0.00021917,2]
[314171028,1708041042466,-543.30693965,0.00021917,2]
[314171029,1708041042474,-907.8,0.00021917,2]
[314171030,1708041042482,-500.0,0.00021917,2]
[314171031,1708041042490,-500.0,0.00021917,2]
[314171032,1708041042499,-500.0,0.00021917,2]
[314171033,1708041042510,-500.0,0.00021917,2]
[314171034,1708041042519,-500.0,0.00021917,2]
[314171035,1708041042530,-500.0,0.00021917,2]
[314171036,1708041042541,-948.26,0.00021917,2]
[314171037,1708041042551,-500.0,0.00021917,2]
[314171038,1708041042562,-500.0,0.00021917,2]
[314171039,1708041042572,-611.66329015,0.00021917,2]
[314171040,1708041042582,-500.0,0.00021917,2]
[314171041,1708041042593,-385.67452166,0.00021917,2]
[314171042,1708041042604,-500.0,0.00021917,2]
[314171043,1708041042615,-715.68,0.00021917,2]
[314171044,1708041042625,-506.57653874,0.00021917,2]
[314171045,1708041042636,-575.53,0.00021917,2]
[314171046,1708041042647,-500.0,0.00021917,2]
[314171047,1708041042658,-500.0,0.00021917,2]
[314171048,1708041042668,-500.0,0.00021917,2]
[314171049,1708041042678,-510.99279299,0.00021917,2]
[314171050,1708041042688,-1063.23,0.00021917,2]
[314171051,1708041042698,-620.72343672,0.00021917,2]
[314171052,1708041042708,-596.22880641,0.00021917,2]
[314171053,1708041042718,-500.0,0.00021917,2]
[314171054,1708041042726,-857.69,0.00021917,2]
[314171055,1708041042736,-495.88183261,0.00021917,2]
[314171056,1708041042748,-513.69969427,0.00021917,2]
[314171057,1708041042759,-500.0,0.00021917,2]
[314171058,1708041042768,-500.0,0.00021917,2]
[314171059,1708041042777,-355.49929128,0.00021917,2]
[314171060,1708041042786,-500.0,0.00021917,2]
[314171061,1708041042795,-500.0,0.00021917,2]
[314171062,1708041042804,-500.0,0.00021917,2]
[314171063,1708041042813,-500.0,0.00021917,2]
[314171064,1708041042822,-500.0,0.00021917,2]
[314171065,1708041042831,-266.15669203,0.00021917,2]
[314171066,1708041042842,-502.55865768,0.00021917,2]
[314171067,1708041042851,-500.0,0.00021917,2]
[314171068,1708041042860,-500.0,0.00021917,2]
[314171069,1708041042868,-501.42662856,0.00021917,2]
[314171070,1708041042877,-501.42535822,0.00021917,2]
[314171072,1708041042887,-500.0,0.00021917,2]
[314171073,1708041042896,-1027.93,0.00021917,2]
[314171074,1708041042905,-500.0,0.00021917,2]
[314171075,1708041042915,-500.0,0.00021917,2]
[314171076,1708041042924,-500.0,0.00021917,2]
[314171077,1708041042933,-500.0,0.00021917,2]
[314171078,1708041042942,-501.40113496,0.00021917,2]
[314171080,1708041042951,-450.210329,0.00021917,2]
[314171081,1708041042960,-263.2000811,0.00021917,2]
[314171082,1708041042969,-500.0,0.00021917,2]
[314171083,1708041042979,-500.0,0.00021917,2]
[314171084,1708041042988,-500.0,0.00021917,2]
[314171085,1708041042997,-500.0,0.00021917,2]
[314171086,1708041043006,-500.0,0.00021917,2]
[314171087,1708041043015,-500.0,0.00021917,2]
[314171088,1708041043024,-9034.03,0.00021917,2]
[314171089,1708041043033,-584.13,0.00021917,2]
[314171090,1708041043042,-500.0,0.00021917,2]
[314171091,1708041043051,-3568.57,0.00021917,2]
[314171092,1708041043060,-510.4,0.00021917,2]
[314171093,1708041043070,-1202.48,0.00021917,2]
[314171094,1708041043080,-10808.99,0.00021917,2]
[314171095,1708041043088,-426.08,0.00021917,2]
[314171096,1708041043096,-500.0,0.00021917,2]
[314171097,1708041043105,-3788.8,0.00021917,2]
[314171098,1708041043115,-501.88432588,0.00021917,2]
[314171099,1708041043126,-470.3612371,0.00021917,2]
[314171100,1708041043139,-500.0,0.00021917,2]
[314171101,1708041043148,-583.6952767,0.00021917,2]
[314171102,1708041043158,-3846.85,0.00021917,2]
[314171103,1708041043167,-501.6565665,0.00021917,2]
[314171104,1708041043176,-500.0,0.00021917,2]
[314171105,1708041043185,-500.0,0.00021917,2]
[314171106,1708041043194,-500.0,0.00021917,2]
[314171107,1708041043203,-1920.59,0.00021917,2]
[314171108,1708041043213,-3038.09,0.00021917,2]
[314171109,1708041043222,-500.0,0.00021917,2]
[314171110,1708041043231,-500.0,0.00021917,2]
[314171111,1708041043240,-602.81264885,0.00021917,2]
[314171116,1708041043306,-500.0,0.00021917,2]
[314171117,1708041043315,-504.85188305,0.00021917,2]
[314171118,1708041043324,-2055.17,0.00021917,2]
[314171119,1708041043334,-500.0,0.00021917,2]
[314171120,1708041043343,-14652.49,0.00021917,2]
[314171121,1708041043351,-500.0,0.00021917,2]
[314171122,1708041043361,-500.0,0.00021917,2]
[314171123,1708041043370,-1000.0,0.00021917,2]
[314171124,1708041043379,-500.0,0.00021917,2]
[314171125,1708041043388,-1443.28,0.00021917,2]
[314171126,1708041043396,-500.0,0.00021917,2]
[314171127,1708041043405,-500.0,0.00021917,2]
[314171128,1708041043414,-500.0,0.00021917,2]
[314171129,1708041043423,-500.0,0.00021917,2]
[314171130,1708041043433,-500.0,0.00021917,2]
[314171131,1708041043442,-500.0,0.00021917,2]
[314171132,1708041043451,-2097.52,0.00021917,2]
[314171133,1708041043460,-500.0,0.00021917,2]
[314171134,1708041043470,-500.0,0.00021917,2]
[314171135,1708041043480,-3230.64,0.00021917,2]
[314171136,1708041043490,-500.0,0.00021917,2]
[314171137,1708041043501,-500.0,0.00021917,2]
[314171138,1708041043511,-2797.19,0.00021917,2]
[314171139,1708041043521,-500.0,0.00021917,2]
[314171140,1708041043531,-500.0,0.00021917,2]
[314171141,1708041043543,-500.0,0.00021917,2]
[314171142,1708041043554,-500.0,0.00021917,2]
[314171143,1708041043565,-547.39344744,0.00021917,2]
[314171144,1708041043577,-500.0,0.00021917,2]
[314171145,1708041043586,-500.0,0.00021917,2]
[314171146,1708041043595,-531.84,0.00021917,2]
[314171147,1708041043606,-509.43438541,0.00021917,2]
[314171148,1708041043618,-1210.85,0.00021917,2]
[314171149,1708041043627,-500.0,0.00021917,2]
[314171150,1708041043637,-1306.81,0.00021917,2]
[314171151,1708041043647,-17131.84,0.00021917,2]
[314171152,1708041043657,-375.44487099,0.00021917,2]
[314171153,1708041043666,-918.32,0.00021917,2]
[314171154,1708041043678,-500.0,0.00021917,2]
[314171155,1708041043689,-500.0,0.00021917,2]
[314171156,1708041043700,-500.0,0.00021917,2]
[314171157,1708041043709,-500.0,0.00021917,2]
[314171158,1708041043719,-500.0,0.00021917,2]
[314171159,1708041043729,-500.0,0.00021917,2]
[314171160,1708041043740,-500.0,0.00021917,2]
[314171161,1708041043749,-505.73434112,0.00021917,2]
[314171162,1708041043759,-500.0,0.00021917,2]
[314171163,1708041043769,-500.0,0.00021917,2]
[314171164,1708041043777,-16248.46,0.00021917,2]
[314171165,1708041043786,-23387.28,0.00021917,2]
[314171166,1708041043795,-500.0,0.00021917,2]
[314171167,1708041043804,-500.0,0.00021917,2]
[314171168,1708041043813,-14219.6,0.00021917,2]
[314171169,1708041043821,-500.0,0.00021917,2]
[314171170,1708041043831,-796.71,0.00021917,2]
[314171171,1708041043839,-796.71,0.00021917,2]
[314171172,1708041043849,-796.71,0.00021917,2]
[314171173,1708041043859,-796.71,0.00021917,2]
[314171174,1708041043868,-796.71,0.00021917,2]
[314171175,1708041043876,-796.71,0.00021917,2]
[314171176,1708041043885,-796.71,0.00021917,2]
[314171177,1708041043895,-796.71,0.00021917,2]
[314171178,1708041043904,-796.71,0.00021917,2]
[314171179,1708041043913,-796.71,0.00021917,2]
[314171180,1708041043924,-2706.1,0.00021917,2]
[314171181,1708041043934,-6136.03,0.00021917,2]
[314171182,1708041043943,-460.0,0.00021917,2]
[314171183,1708041043950,-500.0,0.00021917,2]
[314171184,1708041043959,-500.0,0.00021917,2]
[314171185,1708041043969,-2287.55,0.00021917,2]
[314171186,1708041043978,-500.0,0.00021917,2]
[314171187,1708041043987,-500.0,0.00021917,2]
[314171188,1708041043996,-500.0,0.00021917,2]
[314171189,1708041044006,-500.0,0.00021917,2]
[314171190,1708041044015,-500.0,0.00021917,2]
[314171191,1708041044024,-500.0,0.00021917,2]
[314171192,1708041044032,-500.0,0.00021917,2]
[314171193,1708041044042,-500.0,0.00021917,2]
[314171194,1708041044051,-500.0,0.00021917,2]
[314171195,1708041044060,-500.0,0.00021917,2]
[314171196,1708041044069,-536.17297969,0.00021917,2]
[314171197,1708041044078,-500.0,0.00021917,2]
[314171198,1708041044087,-500.0,0.00021917,2]
[314171199,1708041044096,-500.0,0.00021917,2]
[314171200,1708041044105,-813.3,0.00021917,2]
[314171201,1708041044114,-1708.32,0.00021917,2]
[314171202,1708041044122,-500.0,0.00021917,2]
[314171203,1708041044131,-1916.58,0.00021917,2]
[314171204,1708041044141,-619.6,0.00021917,2]
[314171205,1708041044150,-3461.87,0.00021917,2]
[314171206,1708041044159,-1087.62754422,0.00021947,2]
[314171207,1708041044168,-1087.62754422,0.00021991,2]
[314171208,1708041044177,-500.0,0.00021999,2]
[314171209,1708041044186,-500.0,0.00021999,2]
[314171210,1708041044195,-500.0,0.00021999,2]
[314171211,1708041044204,-3253.37126141,0.0002209,2]
[314171212,1708041044214,-796.71,0.0002209,2]
[314171213,1708041044223,-796.71,0.0002209,2]
[314171214,1708041044232,-796.71,0.0002209,2]
[314171215,1708041044241,-796.71,0.0002209,2]
[314171216,1708041044250,-796.71,0.0002209,2]
[314171217,1708041044259,-796.71,0.0002209,2]
[314171218,1708041044268,-796.71,0.0002209,2]
[314171219,1708041044277,-276000.0,0.00022091,2]
[314171220,1708041044286,-1000.0,0.00022186,2]
[314171221,1708041044296,-500.0,0.0002219,2]
[314171222,1708041044305,-451.98183274,0.0002219,2]
[314171223,1708041044314,-500.0,0.0002219,2]
[314171224,1708041044324,-500.0,0.0002219,2]
[314171225,1708041044332,-197.33585836,0.0002219,2]
[314171226,1708041044396,-499.96128475,0.0002219,2]
[314171227,1708041044406,-500.0,0.0002219,2]
[314171228,1708041044416,-327.75875897,0.0002219,2]
[314171229,1708041044425,-500.0,0.0002219,2]
[314171230,1708041044435,-500.0,0.0002219,2]
[314171231,1708041044444,-500.0,0.0002219,2]
[314171232,1708041044454,-500.0,0.0002219,2]
[314171233,1708041044463,-600.0,0.0002219,2]
[314171234,1708041044472,-500.0,0.0002219,2]
[314171235,1708041044481,-522.90635251,0.0002219,2]
[314171236,1708041044490,-500.0,0.0002219,2]
[314171237,1708041044499,-500.0,0.0002219,2]
[314171238,1708041044508,-500.0,0.0002219,2]
[314171239,1708041044517,-500.0,0.0002219,2]
[314171240,1708041044525,-500.0,0.0002219,2]
[314171241,1708041044534,-470.11482252,0.0002219,2]
[314171242,1708041044542,-500.0,0.0002219,2]
[314171243,1708041044552,-500.0,0.0002219,2]
[314171244,1708041044562,-500.0,0.0002219,2]
[314171245,1708041044571,-500.0,0.0002219,2]
[314171246,1708041044580,-500.0,0.0002219,2]
[314171247,1708041044590,-500.0,0.0002219,2]
[314171248,1708041044598,-500.0,0.0002219,2]
[314171249,1708041044608,-433.25507072,0.0002219,2]
[314171250,1708041044617,-500.0,0.0002219,2]
[314171251,1708041044627,-500.0,0.0002219,2]
[314171252,1708041044636,-500.0,0.0002219,2]
[314171253,1708041044647,-796.71,0.0002219,2]
[314171254,1708041044656,-796.71,0.0002219,2]
[314171255,1708041044665,-796.71,0.0002219,2]
[314171256,1708041044674,-796.71,0.0002219,2]
[314171257,1708041044684,-796.71,0.0002219,2]
[314171258,1708041044693,-796.71,0.0002219,2]
[314171259,1708041044702,-796.80003378,0.0002219,2]
[314171260,1708041044711,-580.37169468,0.00022191,2]
[314171261,1708041044720,-500.0,0.00022191,2]
[314171262,1708041044730,-500.0,0.00022191,2]
[314171263,1708041044739,-500.0,0.00022191,2]
[314171265,1708041044749,-500.0,0.00022191,2]
[314171266,1708041044758,-500.0,0.00022191,2]
[314171267,1708041044767,-500.0,0.00022191,2]
[314171268,1708041044776,-366.70770571,0.00022191,2]
[314171269,1708041044785,-324.36232013,0.00022191,2]
[314171270,1708041044794,-543.36,0.00022191,2]
[314171271,1708041044803,-579.26416419,0.00022191,2]
[314171272,1708041044813,-500.0,0.00022191,2]
[314171273,1708041044822,-500.0,0.00022191,2]
[314171274,1708041044831,-826.02,0.00022191,2]
[314171276,1708041044840,-161.36936577,0.00022191,2]
[314171277,1708041044849,-500.0,0.00022191,2]
[314171278,1708041044858,-500.0,0.00022191,2]
[314171279,1708041044867,-659.1,0.00022191,2]
[314171280,1708041044876,-415.01598404,0.00022191,2]
[314171281,1708041044885,-500.0,0.00022191,2]
[314171282,1708041044895,-503.66058879,0.00022191,2]
[314171283,1708041044904,-531.7811792,0.00022191,2]
[314171284,1708041044913,-500.0,0.00022191,2]
[314171285,1708041044922,-500.0,0.00022191,2]
[314171286,1708041044930,-510.52661764,0.00022191,2]
[314171287,1708041044938,-500.0,0.00022191,2]
[314171288,1708041044947,-605.37,0.00022191,2]
[314171289,1708041044956,-500.0,0.00022191,2]
[314171290,1708041044965,-511.07894119,0.00022191,2]
[314171291,1708041044974,-550.27637508,0.00022191,2]
[314171292,1708041044984,-500.0,0.00022191,2]
[314171293,1708041044993,-1998.38,0.00022191,2]
[314171294,1708041045004,-680.95,0.00022191,2]
[314171295,1708041045015,-565.12591649,0.00022191,2]
[314171296,1708041045024,-554.07303476,0.00022191,2]
[314171297,1708041045034,-500.0,0.00022191,2]
[314171298,1708041045045,-500.0,0.00022191,2]
[314171299,1708041045056,-500.0,0.00022191,2]
[314171300,1708041045065,-3358.91,0.00022191,2]
[314171301,1708041045075,-500.0,0.00022191,2]
[314171302,1708041045085,-500.0,0.00022191,2]
[314171303,1708041045095,-292.01398535,0.00022191,2]
[314171304,1708041045104,-500.0,0.00022191,2]
[314171305,1708041045113,-500.0,0.00022191,2]
[314171306,1708041045123,-500.0,0.00022191,2]
[314171307,1708041045132,-500.0,0.00022191,2]
[314171308,1708041045143,-237.61082891,0.00022191,2]
[314171309,1708041045152,-500.0,0.00022191,2]
[314171310,1708041045161,-500.0,0.00022191,2]
[314171311,1708041045170,-632.87,0.00022191,2]
[314171312,1708041045180,-403.79557639,0.00022191,2]
[314171313,1708041045189,-339.19159002,0.00022191,2]
[314171314,1708041045198,-659.88,0.00022191,2]
[314171315,1708041045207,-558.62,0.00022191,2]
[314171316,1708041045217,-500.0,0.00022191,2]
[314171317,1708041045226,-500.0,0.00022191,2]
[314171318,1708041045235,-500.0,0.00022191,2]
[314171319,1708041045244,-500.0,0.00022191,2]
[314171320,1708041045254,-500.0,0.00022191,2]
[314171321,1708041045263,-1973.52,0.00022191,2]
[314171322,1708041045272,-500.0,0.00022191,2]
[314171323,1708041045281,-500.0,0.00022191,2]
[314171324,1708041045290,-500.0,0.00022191,2]
[314171325,1708041045299,-500.0,0.00022191,2]
[314171326,1708041045308,-500.0,0.00022191,2]
[314171327,1708041045318,-500.0,0.00022191,2]
[314171328,1708041045327,-530.57541768,0.00022191,2]
[314171329,1708041045336,-500.0,0.00022191,2]
[314171330,1708041045397,-500.0,0.00022191,2]
[314171331,1708041045407,-500.0,0.00022191,2]
[314171332,1708041045416,-500.0,0.00022191,2]
[314171333,1708041045425,-500.0,0.00022191,2]
[314171334,1708041045435,-941.0,0.00022191,2]
[314171335,1708041045444,-503.08737769,0.00022191,2]
[314171336,1708041045453,-582.01731099,0.00022191,2]
[314171337,1708041045461,-1000.0,0.00022191,5]
[314171338,1708041045470,-500.0,0.00022191,2]
[314171339,1708041045479,-500.0,0.00022191,2]
[314171340,1708041045488,-500.0,0.00022191,2]
[314171341,1708041045497,-500.0,0.00022191,2]
[314171342,1708041045506,-500.0,0.00022191,2]
[314171343,1708041045516,-1273.42,0.00022191,2]
[314171344,1708041045526,-500.0,0.00022191,2]
[314171345,1708041045534,-1866.65,0.00022191,2]
[314171346,1708041045543,-907.8,0.00022191,2]
[314171347,1708041045554,-500.0,0.00022191,2]
[314171348,1708041045564,-500.0,0.00022191,2]
[314171349,1708041045573,-500.0,0.00022191,2]
[314171350,1708041045582,-151.0,0.00022191,2]
[314171351,1708041045591,-500.0,0.00022191,2]
[314171352,1708041045601,-948.26,0.00022191,2]
[314171353,1708041045611,-500.92600228,0.00022191,2]
[314171354,1708041045620,-500.0,0.00022191,2]
[314171355,1708041045629,-500.0,0.00022191,2]
[314171356,1708041045637,-715.68,0.00022191,2]
[314171357,1708041045648,-575.53,0.00022191,2]
[314171358,1708041045657,-557.04962915,0.00022191,2]
[314171359,1708041045666,-500.0,0.00022191,2]
[314171360,1708041045675,-1063.23,0.00022191,2]
[314171361,1708041045684,-500.0,0.00022191,2]
[314171362,1708041045694,-857.69,0.00022191,2]
[314171363,1708041045704,-500.0,0.00022191,2]
[314171364,1708041045713,-500.0,0.00022191,2]
[314171365,1708041045722,-500.0,0.00022191,2]
[314171366,1708041045732,-500.0,0.00022191,2]
[314171367,1708041045741,-506.91722832,0.00022191,2]
[314171368,1708041045750,-500.0,0.00022191,2]
[314171369,1708041045759,-430.24803241,0.00022191,2]
[314171370,1708041045768,-1027.93,0.00022191,2]
[314171371,1708041045777,-500.0,0.00022191,2]
[314171372,1708041045787,-500.0,0.00022191,2]
[314171373,1708041045795,-500.0,0.00022191,2]
[314171374,1708041045806,-151.0,0.00022191,2]
[314171375,1708041045816,-500.0,0.00022191,2]
[314171376,1708041045826,-518.16020758,0.00022191,2]
[314171377,1708041045836,-500.0,0.00022191,2]
[314171378,1708041045847,-212.18676146,0.00022191,2]
[314171379,1708041045856,-500.0,0.00022191,2]
[314171380,1708041045866,-9034.03,0.00022191,2]
[314171381,1708041045876,-584.13,0.00022191,2]
[314171383,1708041045886,-3568.57,0.00022191,2]
[314171384,1708041045895,-500.0,0.00022191,2]
[314171385,1708041045905,-510.4,0.00022191,2]
[314171386,1708041045914,-1202.48,0.00022191,2]
[314171387,1708041045924,-10808.99,0.00022191,2]
[314171388,1708041045932,-500.0,0.00022191,2]
[314171389,1708041045941,-3788.8,0.00022191,2]
[314171390,1708041045951,-500.0,0.00022191,2]
[314171391,1708041045961,-3846.85,0.00022191,2]
[314171392,1708041045971,-500.0,0.00022191,2]
[314171393,1708041045982,-575.26411866,0.00022191,2]
[314171394,1708041045992,-151.0,0.00022191,2]
[314171395,1708041046001,-500.0,0.00022191,2]
[314171396,1708041046011,-1920.59,0.00022191,2]
[314171397,1708041046022,-3038.09,0.00022191,2]
[314171398,1708041046034,-500.0,0.00022191,2]
[314171399,1708041046044,-500.0,0.00022191,2]
[314171400,1708041046054,-500.0,0.00022191,2]
[314171401,1708041046065,-151.0,0.00022191,2]
[314171402,1708041046075,-2055.17,0.00022191,2]
[314171403,1708041046084,-500.0,0.00022191,2]
[314171404,1708041046093,-14652.49,0.00022191,2]
[314171405,1708041046104,-500.0,0.00022191,2]
[314171406,1708041046113,-500.0,0.00022191,2]
[314171407,1708041046122,-1000.0,0.00022191,2]
[314171408,1708041046132,-1443.28,0.00022191,2]
[314171409,1708041046141,-500.0,0.00022191,2]
[314171411,1708041046150,-413.900241,0.00022191,2]
[314171413,1708041046159,-413.900241,0.00022191,2]
[314171414,1708041046168,-500.0,0.00022191,2]
[314171415,1708041046177,-500.0,0.00022191,2]
[314171416,1708041046186,-552.62557982,0.00022191,2]
[314171417,1708041046196,-500.0,0.00022191,2]
[314171418,1708041046206,-2097.52,0.00022191,2]
[314171419,1708041046215,-500.0,0.00022191,2]
[314171420,1708041046224,-500.0,0.00022191,2]
[314171421,1708041046232,-3230.64,0.00022191,2]
[314171422,1708041046241,-500.0,0.00022191,2]
[314171423,1708041046251,-500.0,0.00022191,2]
[314171425,1708041046261,-2797.19,0.00022191,2]
[314171427,1708041046269,-357.238219,0.00022191,2]
[314171429,1708041046279,-357.238219,0.00022191,2]
[314171430,1708041046338,-500.0,0.00022191,2]
[314171431,1708041046347,-376.30669762,0.00022191,2]
[314171432,1708041046357,-500.0,0.00022191,2]
[314171433,1708041046366,-500.0,0.00022191,2]
[314171434,1708041046376,-500.0,0.00022191,2]
[314171435,1708041046385,-531.84,0.00022191,2]
[314171436,1708041046394,-1210.85,0.00022191,2]
[314171437,1708041046404,-1306.81,0.00022191,2]
[314171438,1708041046413,-17131.84,0.00022191,2]
[314171439,1708041046422,-918.32,0.00022191,2]
[314171440,1708041046431,-500.0,0.00022191,2]
[314171441,1708041046441,-500.0,0.00022191,2]
[314171442,1708041046450,-532.10150668,0.00022191,2]
[314171443,1708041046459,-500.0,0.00022191,2]
[314171444,1708041046468,-16248.46,0.00022191,2]
[314171445,1708041046477,-500.0,0.00022191,2]
[314171446,1708041046486,-23387.28,0.00022191,2]
[314171447,1708041046495,-511.87142877,0.00022191,2]
[314171448,1708041046504,-14219.6,0.00022191,2]
[314171449,1708041046514,-2706.1,0.00022191,2]
[314171450,1708041046523,-6136.03,0.00022191,2]
[314171451,1708041046532,-500.0,0.00022191,2]
[314171452,1708041046541,-500.0,0.00022191,2]
[314171453,1708041046552,-2287.55,0.00022191,2]
[314171454,1708041046562,-500.0,0.00022191,2]
[314171455,1708041046573,-500.0,0.00022191,2]
[314171456,1708041046582,-491.43111383,0.00022191,2]
[314171457,1708041046591,-239.15285987,0.00022191,2]
[314171458,1708041046601,-813.3,0.00022191,2]
[314171459,1708041046610,-1708.32,0.00022191,2]
[314171460,1708041046619,-422.59488046,0.00022191,2]
[314171461,1708041046628,-1916.58,0.00022191,2]
[314171462,1708041046637,-619.6,0.00022191,2]
[314171463,1708041046647,-3461.87,0.00022191,2]
[314171464,1708041046656,-308.766801,0.00022192,2]
[314171465,1708041046665,-173.1536496,0.00022192,2]
[314171466,1708041046674,-326.9429495,0.00022192,2]
[314171467,1708041046682,-312.8842493,0.00022192,2]
[314171468,1708041046691,-328.2596335,0.00022192,2]
[314171469,1708041046700,-11703.93724694,0.00022192,2]
[314171470,1708041046709,-5000.0,0.00022192,2]
[314171471,1708041046718,-3289.97341438,0.00022192,2]
[314171472,1708041046728,-5000.0,0.00022192,2]
[314171473,1708041046738,-2460.50132928,0.00022192,2]
[314171474,1708041046747,-5000.0,0.00022192,2]
[314171475,1708041046756,-18034.84095522,0.00022192,2]
[314171476,1708041046766,-457.18203529,0.00022257,2]
[314171477,1708041046775,-1000.0,0.00022257,2]
[314171478,1708041046783,-1000.0,0.00022282,2]
[314171479,1708041046793,-1000.0,0.00022283,2]
[314171480,1708041046802,-1000.0,0.00022285,2]
[314171481,1708041046811,-1000.0,0.00022292,2]
[314171482,1708041046819,-579.0,0.000223,2]
[314171483,1708041046829,-1000.0,0.00022317,2]
[314171484,1708041046837,-1000.0,0.00022321,2]
[314171485,1708041046848,-1000.0,0.00022327,2]
[314171486,1708041046857,-1000.0,0.00022337,2]
[314171487,1708041046866,-1000.0,0.00022342,2]
[314171488,1708041046875,-526.67414881,0.00022355,2]
[314171489,1708041046884,-1000.0,0.00022359,2]
[314171490,1708041046894,-1000.0,0.00022369,2]